bitfinex/quotes_BTCUSD_20241202
["timestamp","ask_amount","ask_price","bid_price","bid_amount"]
[1733121258164,0.30244611,96355.0,96354.0,0.0058645]
[1733121258390,0.30244611,96355.0,96354.0,0.0028645]
[1733121258836,0.65735265,96355.0,96354.0,0.0058645]
[1733121259053,0.75735265,96355.0,96354.0,0.0058645]
[1733121259556,0.90735265,96355.0,96354.0,0.0028645]
[1733121259834,0.307591,96343.0,96333.0,0.000864]
[1733121260056,0.41043621,96343.0,96333.0,0.000864]
[1733121260537,0.307606,96336.0,96333.0,0.000864]
[1733121260767,0.41045121,96336.0,96333.0,0.000864]
[1733121261211,0.41045121,96336.0,96335.0,0.00145987]
[1733121261437,0.49301483,96336.0,96335.0,0.00145987]
[1733121261905,0.49301483,96336.0,96335.0,3.00145987]
[1733121262127,0.41045121,96336.0,96335.0,3.00445987]
[1733121263094,0.41045121,96336.0,96335.0,3.00145987]
[1733121263095,0.66045121,96336.0,96335.0,3.00145987]
[1733121263767,0.68110238,96336.0,96335.0,3.00145987]
[1733121265132,0.82840292,96336.0,96335.0,2.98337973]
[1733121268637,0.82840292,96336.0,96335.0,2.96259349]
[1733121268638,0.95620292,96336.0,96335.0,2.96259349]
[1733121269078,1.15620292,96336.0,96335.0,2.96259349]
[1733121270961,1.15620292,96336.0,96335.0,2.96345819]
[1733121272791,0.82840292,96336.0,96335.0,2.96345819]
[1733121273008,0.77840292,96336.0,96335.0,2.96345819]
[1733121273236,0.47767888,96336.0,96335.0,2.96345819]
[1733121273676,0.55702771,96336.0,96335.0,2.96345819]
[1733121273933,0.45702771,96336.0,96335.0,2.96345819]
[1733121274151,0.55702771,96336.0,96335.0,2.96345819]
[1733121274577,0.45702771,96336.0,96335.0,2.96345819]
[1733121275331,0.45702771,96336.0,96335.0,2.96645819]
[1733121275761,0.10212117,96336.0,96335.0,3.08905819]
[1733121276231,0.10212117,96336.0,96335.0,3.09205819]
[1733121276432,0.10212117,96336.0,96335.0,3.09405819]
[1733121281089,0.10212117,96336.0,96335.0,3.06904742]
[1733121282950,0.12444547,96336.0,96335.0,3.06904742]
[1733121283839,0.10385097,96336.0,96335.0,3.06904742]
[1733121286639,0.10385097,96336.0,96335.0,3.06704742]
[1733121287088,0.10385097,96336.0,96335.0,3.06904742]
[1733121288643,0.10385097,96336.0,96335.0,3.06604742]
[1733121289058,0.10385097,96336.0,96335.0,3.07004742]
[1733121294294,0.0017298,96336.0,96335.0,3.07004742]
[1733121294744,0.00229642,96363.0,96335.0,2.94444742]
[1733121294978,0.10514163,96357.0,96356.0,0.331563]
[1733121295209,0.10284521,96357.0,96356.0,0.331563]
[1733121297037,0.10284521,96357.0,96356.0,0.332563]
[1733121297948,0.10284521,96357.0,96356.0,0.333563]
[1733121302388,0.35490654,96372.0,96356.0,0.333563]
[1733121302618,0.0017292,96377.0,96373.0,0.207527]
[1733121302846,0.0017292,96377.0,96373.0,0.330127]
[1733121304000,0.00232471,96374.0,96373.0,0.330127]
[1733121304496,0.00232471,96374.0,96373.0,0.339127]
[1733121304716,0.00232471,96374.0,96373.0,0.344127]
[1733121305171,0.10516992,96374.0,96373.0,0.014]
[1733121305401,0.10746591,96374.0,96373.0,0.014]
[1733121308714,0.29496651,96374.0,96373.0,0.02433156]
[1733121308939,1.02597706,96374.0,96373.0,0.02433156]
[1733121309382,1.02597706,96374.0,96373.0,0.01533156]
[1733121309616,1.0496229,96374.0,96373.0,0.01133156]
[1733121309841,1.0496229,96374.0,96373.0,0.01233156]
[1733121310337,1.27751055,96374.0,96373.0,0.01233156]
[1733121310574,1.27251055,96374.0,96373.0,0.01033156]
[1733121310837,1.27751055,96374.0,96373.0,0.01033156]
[1733121311298,1.28558286,96374.0,96373.0,0.01033156]
[1733121312456,1.22108226,96374.0,96373.0,0.01033156]
[1733121312679,1.22508226,96374.0,96373.0,0.01033156]
[1733121313111,1.21908226,96374.0,96373.0,0.01033156]
[1733121313339,1.23008226,96374.0,96373.0,0.01233156]
[1733121313605,1.22108226,96374.0,96373.0,0.01133156]
[1733121313821,1.21908226,96374.0,96373.0,0.01033156]
[1733121314056,1.33291372,96374.0,96373.0,0.001]
[1733121315435,0.207606,96336.0,96335.0,2.93844742]
[1733121315682,0.31045121,96336.0,96335.0,2.93844742]
[1733121315937,0.10284521,96336.0,96335.0,2.93844742]
[1733121316670,0.10384521,96336.0,96335.0,2.95144742]
[1733121316907,0.10395636,96336.0,96335.0,2.95144742]
[1733121319559,0.12683527,96336.0,96335.0,2.95144742]
[1733121320749,0.12925324,96336.0,96335.0,2.95144742]
[1733121321011,0.6235921,96336.0,96335.0,2.95144742]
[1733121321199,0.77129522,96336.0,96335.0,2.95144742]
[1733121321482,0.84839522,96336.0,96335.0,2.95144742]
[1733121321695,0.8089629,96336.0,96335.0,2.95144742]
[1733121322138,1.0089629,96336.0,96335.0,2.95144742]
[1733121322364,1.0089629,96336.0,96335.0,2.94744742]
[1733121322593,1.0079629,96336.0,96335.0,2.94044742]
[1733121322806,1.21079436,96336.0,96335.0,2.94044742]
[1733121323031,1.23454059,96336.0,96335.0,2.94344742]
[1733121323251,1.23454059,96336.0,96335.0,2.93844742]
[1733121323467,1.26780467,96336.0,96335.0,2.93944742]
[1733121323970,1.26780467,96336.0,96335.0,2.93844742]
[1733121323971,1.25680467,96336.0,96335.0,2.93844742]
[1733121324197,1.26780467,96336.0,96335.0,2.93944742]
[1733121327290,1.26580467,96336.0,96335.0,2.93944742]
[1733121327525,1.25680467,96336.0,96335.0,2.93844742]
[1733121327741,1.26580467,96336.0,96335.0,2.93944742]
[1733121328173,0.91089813,96336.0,96335.0,2.58454088]
[1733121328643,0.91289813,96336.0,96335.0,2.58454088]
[1733121329828,0.91289813,96336.0,96335.0,2.54873524]
[1733121330050,0.92462131,96336.0,96335.0,2.54873524]
[1733121331435,1.46452131,96336.0,96335.0,2.54873524]
[1733121331877,1.46783689,96336.0,96335.0,2.54873524]
[1733121332576,1.46784482,96336.0,96335.0,2.54873524]
[1733121332816,1.36501336,96336.0,96335.0,2.54873524]
[1733121334438,1.16564928,96336.0,96335.0,2.54873524]
[1733121334665,1.15391817,96336.0,96335.0,2.54873524]
[1733121334894,1.13017194,96336.0,96335.0,2.54873524]
[1733121336261,1.14190305,96336.0,96335.0,2.54873524]
[1733121336513,1.34473451,96336.0,96335.0,2.54873524]
[1733121336949,1.24473451,96336.0,96335.0,2.54873524]
[1733121337195,1.3330034,96336.0,96335.0,2.54873524]
[1733121337688,1.23017194,96336.0,96335.0,2.54873524]
[1733121342421,1.24190859,96336.0,96335.0,2.54873524]
[1733121343996,1.22063779,96336.0,96335.0,2.54873524]
[1733121346141,1.12063779,96336.0,96335.0,2.54873524]
[1733121346354,1.22063779,96336.0,96335.0,2.54873524]
[1733121346567,1.32346925,96336.0,96335.0,2.54873524]
[1733121347441,1.32362706,96336.0,96335.0,2.54873524]
[1733121347679,1.32362706,96336.0,96335.0,2.56426277]
[1733121348331,1.34662706,96336.0,96335.0,2.56426277]
[1733121348558,1.37588251,96336.0,96335.0,2.56426277]
[1733121349031,1.45478251,96336.0,96335.0,2.52797424]
[1733121349256,1.47855426,96336.0,96335.0,1.89396622]
[1733121349472,1.52685426,96336.0,96335.0,1.88319097]
[1733121350187,1.51785426,96336.0,96335.0,1.82055517]
[1733121350426,1.52485426,96336.0,96335.0,1.78003317]
[1733121350639,1.52485426,96336.0,96335.0,1.73751117]
[1733121350640,1.52185426,96336.0,96335.0,1.73751117]
[1733121351284,1.51585426,96336.0,96335.0,1.69598917]
[1733121351535,1.52185426,96336.0,96335.0,1.65446717]
[1733121352190,1.53085426,96336.0,96335.0,1.54160528]
[1733121353679,1.53085426,96336.0,96335.0,1.49002638]
[1733121354587,1.53085426,96336.0,96335.0,1.4352149]
[1733121355239,1.53085426,96336.0,96335.0,0.8537929]
[1733121355467,1.48970435,96336.0,96335.0,0.8122709]
[1733121355681,1.5316902,96336.0,96335.0,0.7499879]
[1733121355893,1.5316902,96336.0,96335.0,0.7292269]
[1733121356339,1.47470435,96336.0,96335.0,0.6867049]
[1733121356543,1.48754059,96336.0,96335.0,0.6867049]
[1733121356784,1.50554059,96336.0,96335.0,0.6471829]
[1733121356995,1.5346902,96336.0,96335.0,0.5838999]
[1733121357197,1.53569923,96336.0,96335.0,0.5838999]
[1733121357430,1.53569923,96336.0,96335.0,0.5848999]
[1733121357638,1.54469923,96336.0,96335.0,0.5641389]
[1733121357848,1.54469923,96336.0,96335.0,0.5631389]
[1733121358121,1.54469923,96336.0,96335.0,0.4800949]
[1733121358122,1.53569923,96336.0,96335.0,0.4800949]
[1733121358560,1.47470435,96336.0,96335.0,0.4790949]
[1733121358767,1.52185396,96336.0,96335.0,0.3752899]
[1733121358971,1.53569923,96336.0,96335.0,0.3752899]
[1733121359182,1.49270435,96336.0,96335.0,0.3752899]
[1733121359624,1.49270435,96336.0,96335.0,0.3545289]
[1733121359831,1.49270435,96336.0,96335.0,0.2714849]
[1733121360452,1.53569923,96336.0,96335.0,0.2714849]
[1733121360675,1.52185396,96336.0,96335.0,0.2299629]
[1733121360896,1.53569923,96336.0,96335.0,0.1676799]
[1733121361725,1.49270435,96336.0,96335.0,0.1469189]
[1733121362022,1.53569923,96336.0,96335.0,0.1469189]
[1733121362234,1.43330922,96336.0,96335.0,0.1469189]
[1733121363104,1.29710922,96336.0,96335.0,0.1469189]
[1733121363368,1.30610922,96336.0,96335.0,0.1469189]
[1733121363576,1.31334877,96336.0,96335.0,0.1469189]
[1733121363795,1.42518023,96336.0,96335.0,0.1479189]
[1733121364262,1.41618023,96336.0,96335.0,0.1469189]
[1733121364740,1.42418023,96336.0,96335.0,0.1479189]
[1733121365252,1.40794068,96336.0,96335.0,0.1479189]
[1733121365469,1.39894068,96336.0,96335.0,0.1479189]
[1733121365912,1.30794068,96336.0,96335.0,0.1479189]
[1733121366132,1.40794068,96336.0,96335.0,0.1479189]
[1733121369042,1.40794068,96336.0,96335.0,0.0648749]
[1733121369712,1.39094068,96336.0,96335.0,0.0223529]
[1733121370096,1.39994068,96336.0,96335.0,9e-07]
[1733121370097,1.40794068,96336.0,96335.0,9e-07]
[1733121370743,0.2,96334.0,96333.0,9e-07]
[1733121370893,0.62893565,96334.0,96333.0,9e-07]
[1733121371094,0.64395303,96334.0,96333.0,9e-07]
[1733121372008,0.84395303,96334.0,96333.0,9e-07]
[1733121372236,0.84427344,96334.0,96333.0,9e-07]
[1733121372455,0.90794,96328.0,96327.0,9e-07]
[1733121372667,0.98404,96327.0,96326.0,9e-07]
[1733121372885,1.11065696,96327.0,96326.0,9e-07]
[1733121373096,1.32131066,96327.0,96326.0,3e-08]
[1733121373314,1.42414212,96327.0,96326.0,3e-08]
[1733121373987,1.62414212,96327.0,96326.0,3e-08]
[1733121374198,1.63314212,96327.0,96326.0,3e-08]
[1733121374627,1.64014212,96327.0,96326.0,0.00100003]
[1733121374836,1.56404212,96327.0,96326.0,0.00100003]
[1733121375075,1.56404212,96327.0,96326.0,0.001]
[1733121376160,1.46121066,96327.0,96326.0,0.001]
[1733121376408,1.49036027,96327.0,96326.0,0.001]
[1733121376622,1.39532027,96327.0,96326.0,0.001]
[1733121376843,1.49036027,96327.0,96326.0,0.0822]
[1733121377051,1.31939891,96327.0,96326.0,0.0822]
[1733121377280,1.42223037,96327.0,96326.0,0.0822]
[1733121377545,1.51727037,96327.0,96326.0,0.0822]
[1733121378003,1.40543891,96327.0,96326.0,0.0822]
[1733121378673,1.42843891,96327.0,96326.0,0.0822]
[1733121378920,1.42143891,96327.0,96326.0,0.0812]
[1733121379128,0.88153891,96327.0,96326.0,0.0812]
[1733121379342,0.89553891,96327.0,96326.0,0.0820646]
[1733121379795,0.66349891,96327.0,96326.0,0.0820646]
[1733121380062,0.52549891,96327.0,96326.0,0.1279646]
[1733121380279,0.51649891,96327.0,96326.0,0.1279646]
[1733121380488,0.51349891,96327.0,96326.0,0.1279646]
[1733121380712,0.31487291,96327.0,96326.0,0.1279646]
[1733121380938,0.31787291,96327.0,96326.0,0.1279646]
[1733121381163,0.10887291,96327.0,96326.0,0.1279646]
[1733121382234,0.10587291,96327.0,96326.0,0.1279646]
[1733121382449,0.31849891,96327.0,96326.0,0.1279646]
[1733121382730,0.31449891,96327.0,96326.0,0.1279646]
[1733121382978,0.10587291,96327.0,96326.0,0.1279646]
[1733121383203,0.1580841,96327.0,96326.0,0.1279646]
[1733121383441,0.16038113,96327.0,96326.0,0.1279646]
[1733121383703,0.26038113,96327.0,96326.0,0.1279646]
[1733121383942,0.2580841,96327.0,96326.0,0.1279646]
[1733121385853,0.2630841,96327.0,96326.0,0.1279646]
[1733121386322,0.20787291,96327.0,96326.0,0.1279646]
[1733121386617,0.21517007,96327.0,96326.0,0.1279646]
[1733121386792,0.10817007,96327.0,96326.0,0.1279646]
[1733121387005,0.10587291,96327.0,96326.0,0.1279646]
[1733121387249,0.11287291,96327.0,96326.0,0.1279646]
[1733121387483,0.10787291,96327.0,96326.0,0.1279646]
[1733121387726,0.10587291,96327.0,96326.0,0.1279646]
[1733121387961,0.10687291,96327.0,96326.0,0.1279646]
[1733121388436,0.10916995,96327.0,96326.0,0.1279646]
[1733121388904,0.11316995,96327.0,96326.0,0.1279646]
[1733121389143,0.11216995,96327.0,96326.0,0.1279646]
[1733121389392,0.10816995,96327.0,96326.0,0.1279646]
[1733121389619,0.10587291,96327.0,96326.0,0.1289646]
[1733121390113,0.10587291,96327.0,96326.0,0.1279646]
[1733121390357,0.10587291,96327.0,96326.0,0.1289646]
[1733121390620,0.10760211,96327.0,96326.0,0.1289646]
[1733121390859,0.10760211,96327.0,96326.0,0.1279646]
[1733121391086,0.10760211,96327.0,96326.0,0.1299646]
[1733121395735,0.10760211,96327.0,96326.0,0.1349246]
[1733121395980,0.10760211,96327.0,96326.0,0.1329246]
[1733121396218,0.10760211,96327.0,96326.0,0.1339246]
[1733121397375,0.00184035,96336.0,96334.0,0.20761]
[1733121397599,0.00184035,96336.0,96335.0,0.1309]
[1733121398755,0.00184035,96336.0,96335.0,0.13586]
[1733121399437,0.00284035,96336.0,96335.0,0.13586]
[1733121399659,0.00284035,96336.0,96335.0,0.13886]
[1733121400110,0.00284035,96336.0,96335.0,0.13586]
[1733121400331,0.00284035,96336.0,96335.0,0.13886]
[1733121400573,0.00384035,96336.0,96335.0,0.13886]
[1733121402151,0.00284035,96336.0,96335.0,0.13586]
[1733121402389,0.00384035,96336.0,96335.0,0.13886]
[1733121402852,0.00284035,96336.0,96335.0,0.13586]
[1733121403088,0.00184035,96336.0,96335.0,0.13586]
[1733121403330,0.00384035,96336.0,96335.0,0.13886]
[1733121403573,0.00284035,96336.0,96335.0,0.13886]
[1733121403801,0.00184035,96336.0,96335.0,0.13586]
[1733121404046,0.00384035,96336.0,96335.0,0.13886]
[1733121404264,0.00284035,96336.0,96335.0,0.13886]
[1733121404495,0.00384035,96336.0,96335.0,0.13886]
[1733121405857,0.00184035,96336.0,96335.0,0.13586]
[1733121406105,0.00384035,96336.0,96335.0,0.13886]
[1733121406534,0.00284035,96336.0,96335.0,0.13586]
[1733121406961,0.00284035,96336.0,96335.0,0.13886]
[1733121407385,0.00384035,96336.0,96335.0,0.13886]
[1733121407593,0.00284035,96336.0,96335.0,0.13886]
[1733121408899,0.00384035,96336.0,96335.0,0.13886]
[1733121411778,0.00284035,96336.0,96335.0,0.13586]
[1733121412000,0.00184035,96336.0,96335.0,0.13886]
[1733121412216,0.00384035,96336.0,96335.0,0.13886]
[1733121413518,0.00184035,96336.0,96335.0,0.13586]
[1733121413965,0.00284035,96336.0,96335.0,0.13586]
[1733121414185,0.10568556,96336.0,96332.0,0.00496]
[1733121414402,0.34407853,96335.0,96328.0,0.70496]
[1733121414624,0.31604901,96335.0,96333.0,0.00496]
[1733121414843,0.52365801,96335.0,96328.0,0.7]
[1733121415121,0.207622,96329.0,96326.0,0.0008646]
[1733121415323,0.10844332,96328.0,96326.0,0.0008646]
[1733121415755,0.207626,96327.0,96326.0,0.0008646]
[1733121415970,0.31606996,96327.0,96326.0,0.0008646]
[1733121416182,0.10614691,96327.0,96326.0,0.0008646]
[1733121416413,0.10844396,96327.0,96326.0,0.0038646]
[1733121417514,0.10844396,96327.0,96326.0,0.0088246]
[1733121417768,0.10614691,96327.0,96326.0,0.0555246]
[1733121417969,0.10614691,96327.0,96326.0,0.0525246]
[1733121418185,0.10614691,96327.0,96326.0,0.0555246]
[1733121418398,0.10714691,96327.0,96326.0,0.0555246]
[1733121418882,0.10614691,96327.0,96326.0,0.0525246]
[1733121419104,0.10614691,96327.0,96326.0,0.0555246]
[1733121419105,0.10714691,96327.0,96326.0,0.0555246]
[1733121419337,0.10614691,96327.0,96326.0,0.0555246]
[1733121419544,0.0033017,96327.0,96326.0,0.0525246]
[1733121419768,0.001,96327.0,96326.0,0.3416526]
[1733121419987,0.00184035,96336.0,96329.0,0.00496]
[1733121420224,0.10284521,96335.0,96329.0,0.00496]
[1733121420649,0.00329513,96334.0,96329.0,0.00496]
[1733121420875,0.10284521,96333.0,96329.0,0.00496]
[1733121421306,0.00329513,96332.0,96329.0,0.00496]
[1733121421562,0.10614034,96332.0,96329.0,0.00496]
[1733121421773,0.10284521,96332.0,96329.0,0.00496]
[1733121422204,0.10284521,96332.0,96329.0,0.00796]
[1733121422636,0.10384521,96332.0,96329.0,0.00496]
[1733121422874,0.10484521,96332.0,96329.0,0.00796]
[1733121423109,0.00329513,96331.0,96329.0,0.00796]
[1733121424667,0.00329513,96331.0,96329.0,0.00496]
[1733121424909,0.10614034,96331.0,96329.0,0.00796]
[1733121425118,0.10714034,96331.0,96329.0,0.00818174]
[1733121425339,0.10614034,96331.0,96329.0,0.00518174]
[1733121425577,0.10714034,96331.0,96329.0,0.00818174]
[1733121425809,0.10814034,96331.0,96329.0,0.00818174]
[1733121426462,0.10614034,96331.0,96329.0,0.00518174]
[1733121427115,0.10284521,96330.0,96329.0,0.00518174]
[1733121427337,0.10586775,96330.0,96329.0,0.00518174]
[1733121427860,0.10586775,96330.0,96329.0,0.00818174]
[1733121428271,0.10586775,96330.0,96329.0,0.00518174]
[1733121428509,0.10686775,96330.0,96329.0,0.00818174]
[1733121428714,0.10786775,96330.0,96329.0,0.00818174]
[1733121429157,0.10586775,96330.0,96329.0,0.00518174]
[1733121429369,0.10686775,96330.0,96329.0,0.00818174]
[1733121429594,0.10786775,96330.0,96329.0,0.00818174]
[1733121430731,0.10786775,96330.0,96329.0,0.00518174]
[1733121430961,0.10586775,96330.0,96329.0,0.00518174]
[1733121431191,0.10786775,96330.0,96329.0,0.00818174]
[1733121431667,0.10586775,96330.0,96329.0,0.00518174]
[1733121431886,0.10586775,96330.0,96329.0,0.00818174]
[1733121432107,0.10686775,96330.0,96329.0,0.00818174]
[1733121432333,0.10686775,96330.0,96329.0,0.00518174]
[1733121432543,0.15949024,96330.0,96329.0,0.00022174]
[1733121432754,0.10586775,96330.0,96329.0,0.00322174]
[1733121434061,0.10586775,96330.0,96329.0,0.00022174]
[1733121434308,0.10686775,96330.0,96329.0,0.00122174]
[1733121434536,0.10586775,96330.0,96329.0,0.00122174]
[1733121434977,0.10786775,96330.0,96329.0,0.00022174]
[1733121435215,0.10586775,96330.0,96329.0,0.00022174]
[1733121435461,0.10786775,96330.0,96329.0,0.00122174]
[1733121437001,0.11016484,96330.0,96329.0,0.00122174]
[1733121438089,0.11016484,96330.0,96329.0,0.00022174]
[1733121438303,0.10586775,96330.0,96329.0,0.07902174]
[1733121438755,0.10586775,96330.0,96329.0,0.08398174]
[1733121440104,0.10586775,96330.0,96329.0,0.08298174]
[1733121440625,0.10586775,96330.0,96329.0,0.08398174]
[1733121441069,0.10586775,96330.0,96329.0,0.08298174]
[1733121441306,0.10786775,96330.0,96329.0,0.08698174]
[1733121441521,0.10686775,96330.0,96329.0,0.08698174]
[1733121441966,0.10686775,96330.0,96329.0,0.08298174]
[1733121442178,0.10786775,96330.0,96329.0,0.08798174]
[1733121442397,0.00502254,96330.0,96329.0,0.08981914]
[1733121442618,0.00502254,96330.0,96329.0,0.08981898]
[1733121442845,0.002,96330.0,96329.0,0.08981898]
[1733121443477,0.001,96330.0,96329.0,0.08981898]
[1733121443682,0.002,96330.0,96329.0,0.08981898]
[1733121444147,0.001,96330.0,96329.0,0.08981898]
[1733121444395,0.001,96330.0,96329.0,0.08481898]
[1733121444830,0.002,96330.0,96329.0,0.08881898]
[1733121445272,0.001,96330.0,96329.0,0.08481898]
[1733121445738,0.002,96330.0,96329.0,0.08881898]
[1733121446169,0.001,96330.0,96329.0,0.08481898]
[1733121446616,0.0017292,96332.0,96331.0,0.00496]
[1733121446860,0.0017292,96332.0,96331.0,0.00518174]
[1733121448105,0.0027292,96332.0,96331.0,0.00518174]
[1733121449122,0.0027292,96332.0,96331.0,0.00918174]
[1733121449123,0.0037292,96332.0,96331.0,0.00918174]
[1733121449580,0.0027292,96332.0,96331.0,0.00918174]
[1733121449825,0.0027292,96332.0,96331.0,0.05741897]
[1733121450040,0.0037292,96332.0,96331.0,0.13811897]
[1733121451960,0.0027292,96332.0,96331.0,0.13411897]
[1733121452217,0.0037292,96332.0,96331.0,0.13811897]
[1733121452650,0.0017292,96332.0,96331.0,0.13411897]
[1733121453092,0.0097292,96332.0,96331.0,0.13511897]
[1733121453358,0.0017292,96332.0,96331.0,0.13411897]
[1733121453597,0.0087292,96332.0,96331.0,0.13511897]
[1733121453808,0.0087292,96332.0,96331.0,0.13411897]
[1733121454017,0.0127292,96332.0,96331.0,0.13411897]
[1733121454285,0.0207292,96332.0,96331.0,0.61096418]
[1733121454663,0.0017292,96332.0,96331.0,0.64045588]
[1733121454940,0.0057292,96332.0,96331.0,0.64045588]
[1733121455419,0.0017292,96332.0,96331.0,0.64045588]
[1733121455641,0.0057292,96332.0,96331.0,0.64045588]
[1733121456144,0.0057292,96332.0,96331.0,0.60812695]
[1733121456685,0.0057292,96332.0,96331.0,0.48512695]
[1733121456920,0.0057292,96332.0,96331.0,0.58512695]
[1733121457154,0.0057292,96332.0,96331.0,0.58612695]
[1733121457155,0.0137292,96332.0,96331.0,0.58612695]
[1733121457378,0.0057292,96332.0,96331.0,0.58512695]
[1733121457601,0.0017292,96332.0,96331.0,0.58512695]
[1733121457828,0.0097292,96332.0,96331.0,0.58612695]
[1733121458062,0.0137292,96332.0,96331.0,0.59925662]
[1733121458309,0.0137292,96332.0,96331.0,0.60025662]
[1733121458534,0.0177292,96332.0,96331.0,0.60025662]
[1733121458755,0.0097292,96332.0,96331.0,0.59925662]
[1733121458986,0.0127292,96332.0,96331.0,0.59925662]
[1733121459425,0.0127292,96332.0,96331.0,1.29925662]
[1733121459890,0.0207292,96332.0,96331.0,1.30025662]
[1733121460338,0.0047292,96332.0,96331.0,1.29925662]
[1733121460559,0.0097292,96332.0,96331.0,1.32325662]
[1733121461038,0.0017292,96332.0,96331.0,1.32225662]
[1733121461281,0.0137292,96332.0,96331.0,1.32325662]
[1733121461529,0.0057292,96332.0,96331.0,0.62225662]
[1733121462023,0.0137292,96332.0,96331.0,0.62325662]
[1733121462253,0.0010908,96332.0,96331.0,0.62325662]
[1733121463138,0.00184035,96336.0,96335.0,0.20496]
[1733121463373,0.00184035,96336.0,96335.0,0.60856356]
[1733121463619,0.00184035,96336.0,96335.0,0.60672695]
[1733121464745,0.01084035,96336.0,96335.0,0.60772695]
[1733121465024,3.5e-07,96336.0,96335.0,0.60772695]
[1733121465284,0.0017296,96356.0,96355.0,0.692925]
[1733121465511,0.0017296,96356.0,96355.0,0.81899195]
[1733121465512,0.00178917,96356.0,96355.0,0.81899195]
[1733121465730,1.7e-07,96356.0,96355.0,0.81899195]
[1733121466002,1.7e-07,96356.0,96355.0,1.51899195]
[1733121466714,1.7e-07,96356.0,96355.0,1.51899194]
[1733121466946,1.7e-07,96356.0,96355.0,1.55121839]
[1733121467173,1.7e-07,96356.0,96355.0,1.51899194]
[1733121467396,0.0017292,96377.0,96373.0,0.691887]
[1733121467679,0.00232497,96374.0,96373.0,0.79495394]
[1733121468575,0.00232497,96374.0,96373.0,0.79495393]
[1733121468786,0.00232497,96374.0,96373.0,0.69495393]
[1733121469002,0.00232497,96374.0,96373.0,0.44410872]
[1733121469215,0.00232497,96374.0,96373.0,0.54410872]
[1733121469662,0.00732497,96374.0,96373.0,0.54510872]
[1733121469938,0.00732497,96374.0,96373.0,0.43914872]
[1733121470160,0.00732497,96374.0,96373.0,1.24410872]
[1733121470375,0.01032497,96374.0,96373.0,0.91270872]
[1733121470826,0.00732497,96374.0,96373.0,0.91270871]
[1733121471056,0.00232497,96374.0,96373.0,0.91270871]
[1733121471281,0.00232497,96374.0,96373.0,0.91370871]
[1733121471552,0.00232497,96374.0,96373.0,0.21270871]
[1733121471784,0.00232497,96374.0,96373.0,0.21370871]
[1733121472228,0.00232497,96374.0,96373.0,0.21270871]
[1733121472447,0.00232497,96374.0,96373.0,0.214545]
[1733121472929,0.00232497,96374.0,96373.0,0.223545]
[1733121473167,0.00232497,96374.0,96373.0,0.21270871]
[1733121473388,0.00232497,96374.0,96373.0,0.223545]
[1733121473614,0.00232497,96374.0,96373.0,0.22170871]
[1733121473830,0.00332497,96374.0,96373.0,0.22970871]
[1733121474275,0.00232497,96374.0,96373.0,0.22170871]
[1733121474495,0.00232497,96374.0,96373.0,0.22970871]
[1733121474714,0.00332497,96374.0,96373.0,0.22970871]
[1733121475450,0.00232497,96374.0,96373.0,0.22170871]
[1733121475644,0.00332497,96374.0,96373.0,0.22970871]
[1733121475855,0.00332497,96374.0,96373.0,0.22070871]
[1733121476303,0.00332497,96374.0,96373.0,0.22970871]
[1733121476964,0.00232497,96374.0,96373.0,0.30390871]
[1733121477201,0.00332497,96374.0,96373.0,0.31290871]
[1733121478623,0.00332497,96374.0,96373.0,1.01290871]
[1733121479748,0.00332497,96374.0,96373.0,0.31290871]
[1733121481121,0.00332497,96374.0,96373.0,0.3129087]
[1733121482718,0.00332497,96374.0,96373.0,1.0129087]
[1733121486350,0.00332497,96374.0,96373.0,1.21575391]
[1733121486579,0.00332497,96374.0,96373.0,1.76451775]
[1733121487130,0.00332497,96374.0,96373.0,1.21575391]
[1733121487743,0.00332497,96374.0,96373.0,1.2157539]
[1733121488151,0.00332497,96374.0,96373.0,1.3157539]
[1733121488707,0.0017292,96377.0,96376.0,0.10496]
[1733121488891,0.0017292,96377.0,96376.0,0.80701758]
[1733121489120,0.0017292,96377.0,96376.0,0.80518169]
[1733121489804,0.0017292,96377.0,96376.0,0.70518169]
[1733121490688,0.0017292,96377.0,96376.0,0.00718169]
[1733121490937,0.0017292,96377.0,96376.0,0.0120179]
[1733121491150,0.0017292,96377.0,96376.0,0.0070179]
[1733121491362,0.0017292,96377.0,96376.0,0.0210179]
[1733121491787,0.0017292,96377.0,96376.0,0.0120179]
[1733121492673,0.0017292,96377.0,96376.0,0.0070179]
[1733121493158,0.0017292,96377.0,96376.0,0.0230179]
[1733121493399,0.0017292,96377.0,96376.0,0.0140179]
[1733121493631,0.0017292,96377.0,96376.0,0.0070179]
[1733121493836,0.0017292,96377.0,96376.0,0.0230179]
[1733121494260,0.0017292,96377.0,96376.0,0.0160179]
[1733121494521,0.0017292,96377.0,96376.0,0.0070179]
[1733121494715,0.0017292,96377.0,96376.0,0.0140179]
[1733121494922,0.0017292,96377.0,96376.0,0.0230179]
[1733121495794,0.0017292,96377.0,96376.0,0.0160179]
[1733121496237,0.0017292,96377.0,96376.0,0.0070179]
[1733121496456,0.0017292,96377.0,96376.0,0.0240179]
[1733121496893,0.0017292,96377.0,96376.0,0.0160179]
[1733121497116,0.0017292,96377.0,96376.0,0.0240179]
[1733121497367,0.0017292,96377.0,96376.0,0.0150179]
[1733121497598,0.0017292,96377.0,96376.0,0.7080179]
[1733121497809,0.0017292,96377.0,96376.0,0.70618169]
[1733121498018,0.0017292,96377.0,96376.0,0.00618169]
[1733121498240,0.0017292,96377.0,96376.0,0.01701787]
[1733121499539,0.0017292,96377.0,96376.0,0.01601787]
[1733121500400,0.0017292,96377.0,96376.0,0.00801787]
[1733121501060,0.0017292,96377.0,96376.0,0.00701787]
[1733121501502,0.04762093,96395.0,96377.0,0.207518]
[1733121501749,0.04762093,96395.0,96394.0,0.00496]
[1733121502001,0.04762093,96395.0,96394.0,0.21266269]
[1733121502465,0.08,96396.0,96395.0,0.00496]
[1733121502672,0.08,96410.0,96402.0,0.00496]
[1733121502882,0.10284521,96409.0,96402.0,0.00518169]
[1733121503985,0.10297505,96409.0,96403.0,0.207462]
[1733121504195,0.10297505,96409.0,96403.0,0.20768369]
[1733121504648,0.0474,96408.0,96403.0,0.20768369]
[1733121505344,0.0474,96408.0,96403.0,0.00322169]
[1733121505571,0.17784521,96407.0,96403.0,0.00322169]
[1733121505787,0.0477,96405.0,96403.0,0.00322169]
[1733121506011,0.22694521,96404.0,96403.0,0.00322169]
[1733121506219,0.22694521,96404.0,96403.0,0.00822169]
[1733121506464,0.22694521,96404.0,96403.0,0.01018169]
[1733121506679,0.43440521,96404.0,96403.0,0.00022169]
[1733121506886,0.22694521,96404.0,96403.0,0.00722169]
[1733121507102,0.22694521,96404.0,96403.0,0.00818169]
[1733121507309,0.22694521,96404.0,96403.0,0.00518169]
[1733121507524,0.22694521,96404.0,96403.0,0.01418169]
[1733121509239,0.22694521,96404.0,96403.0,0.00818169]
[1733121509460,0.22694521,96404.0,96403.0,0.01518169]
[1733121509680,0.22694521,96404.0,96403.0,0.01218169]
[1733121509885,0.22694521,96404.0,96403.0,0.00818169]